fUSD/lending_fUSD_20240404
["ID","MTS","AMOUNT","RATE_DAILY","PERIOD"]
[321457034,1712200283037,-500.0,0.00054794,120]
[321457035,1712200283047,-500.0,0.00054794,120]
[321457036,1712200283056,-500.0,0.00054794,120]
[321457037,1712200283065,-353.12616233,0.00054794,2]
[321457038,1712200283079,-461.879019,0.00054794,120]
[321457039,1712200283088,-3281.58,0.00054794,120]
[321457040,1712200283097,-4452.74,0.00054794,120]
[321457041,1712200283107,-515.02158542,0.00054794,120]
[321457042,1712200283116,-500.0,0.00054794,120]
[321457043,1712200283125,-500.0,0.00054794,2]
[321457044,1712200283134,-151.0,0.00054794,120]
[321457045,1712200283143,-151.0,0.00054794,120]
[321457046,1712200283152,-5676.39,0.00054794,120]
[321457047,1712200283162,-799.28,0.00054794,120]
[321457048,1712200283171,-500.0,0.00054794,120]
[321457049,1712200283180,-500.0,0.00054794,120]
[321457050,1712200283189,-2184.04,0.00054794,120]
[321457051,1712200283198,-166.25778747,0.00054794,120]
[321457052,1712200283208,-2848.68,0.00054794,120]
[321457053,1712200283217,-152.868601,0.00054794,120]
[321457054,1712200283226,-500.74457924,0.00054794,120]
[321457055,1712200283236,-871.82,0.00054794,120]
[321457056,1712200283245,-500.0,0.00054794,120]
[321457057,1712200283255,-500.0,0.00054794,120]
[321457058,1712200283265,-500.0,0.00054794,120]
[321457059,1712200283274,-577.33,0.00054794,120]
[321457060,1712200283285,-500.0,0.00054794,120]
[321457061,1712200283294,-500.0,0.00054794,120]
[321457062,1712200283305,-1634.01,0.00054794,120]
[321457063,1712200283315,-1634.01,0.00054794,120]
[321457064,1712200283331,-1635.35,0.00054794,120]
[321457065,1712200283341,-1634.01,0.00054794,120]
[321457066,1712200283351,-2850.37,0.00054794,120]
[321457067,1712200283363,-500.0,0.00054794,120]
[321457068,1712200283373,-1634.01,0.00054794,120]
[321457069,1712200283383,-4917.1,0.00054794,120]
[321457070,1712200283393,-1634.01,0.00054794,120]
[321457071,1712200283402,-513.35924589,0.00054794,120]
[321457072,1712200283412,-500.0,0.00054794,120]
[321457073,1712200283422,-1634.01,0.00054794,120]
[321457074,1712200283431,-1634.01,0.00054794,120]
[321457075,1712200283440,-1634.01,0.00054794,120]
[321457076,1712200283449,-1634.01,0.00054794,120]
[321457077,1712200283458,-1634.01,0.00054794,120]
[321457078,1712200283469,-500.0,0.00054794,120]
[321457079,1712200283478,-888.72,0.00054794,120]
[321457080,1712200283487,-1634.01,0.00054794,120]
[321457081,1712200283497,-1634.01,0.00054794,120]
[321457082,1712200283506,-2799.35,0.00054794,120]
[321457083,1712200283515,-1634.01,0.00054794,120]
[321457084,1712200283525,-500.0,0.00054794,120]
[321457085,1712200283534,-1634.01,0.00054794,120]
[321457086,1712200283543,-1634.01,0.00054794,120]
[321457087,1712200283553,-1108.08,0.00054794,120]
[321457088,1712200283562,-1634.01,0.00054794,120]
[321457089,1712200283577,-1634.01,0.00054794,120]
[321457090,1712200283586,-2491.48,0.00054794,120]
[321457091,1712200283596,-1634.01,0.00054794,120]
[321457092,1712200283605,-1634.01,0.00054794,120]
[321457093,1712200283615,-1634.01,0.00054794,120]
[321457094,1712200283625,-1634.01,0.00054794,120]
[321457095,1712200283634,-1634.01,0.00054794,120]
[321457096,1712200283644,-500.0,0.00054794,120]
[321457097,1712200283653,-1634.01,0.00054794,120]
[321457098,1712200283662,-1634.07,0.00054794,120]
[321457099,1712200283671,-3318.06,0.00054794,120]
[321457100,1712200283680,-1922.21,0.00054794,120]
[321457101,1712200283690,-505.21089632,0.00054794,120]
[321457102,1712200283699,-635.38,0.00054794,120]
[321457103,1712200283709,-500.0,0.00054794,120]
[321457104,1712200283719,-1842.18,0.00054794,120]
[321457105,1712200283728,-500.0,0.00054794,120]
[321457106,1712200283738,-2240.52,0.00054794,120]
[321457107,1712200283747,-151.0,0.00054794,120]
[321457108,1712200283756,-151.0,0.00054794,120]
[321457109,1712200283766,-500.0,0.00054794,120]
[321457110,1712200283776,-500.0,0.00054794,120]
[321457111,1712200283785,-500.0,0.00054794,120]
[321457112,1712200283794,-1003.30296425,0.00054794,30]
[321457113,1712200283804,-7532.02,0.00054794,120]
[321457114,1712200283813,-500.0,0.00054794,120]
[321457115,1712200283825,-2789.6,0.00054794,120]
[321457116,1712200283834,-500.0,0.00054794,120]
[321457117,1712200283844,-500.0,0.00054794,120]
[321457118,1712200283855,-19673.78,0.00054794,120]
[321457119,1712200283866,-6100.85,0.00054794,120]
[321457120,1712200283875,-500.0,0.00054794,120]
[321457121,1712200283885,-500.0,0.00054794,120]
[321457122,1712200283895,-500.0,0.00054794,120]
[321457123,1712200283904,-505.42056982,0.00054794,120]
[321457124,1712200283913,-151.0,0.00054794,120]
[321457125,1712200283923,-500.0,0.00054794,2]
[321457126,1712200283933,-1641.24941309,0.00054795,120]
[321457127,1712200283944,-421.34817259,0.00054795,120]
[321457128,1712200283953,-150.0,0.00054795,120]
[321457129,1712200283963,-150.0,0.00054795,120]
[321457130,1712200283972,-191.58923616,0.00054795,120]
[321457131,1712200283982,-150.0,0.00054795,120]
[321457132,1712200283991,-150.0,0.00054795,120]
[321457133,1712200284001,-150.0,0.00054795,120]
[321457134,1712200284010,-150.0,0.00054795,120]
[321457135,1712200284021,-150.0,0.00054795,120]
[321457136,1712200284030,-150.0,0.00054795,120]
[321457137,1712200284039,-292.19039949,0.00054795,120]
[321457138,1712200284049,-500.0,0.00054795,120]
[321457139,1712200284059,-500.0,0.00054795,120]
[321457140,1712200284071,-500.0,0.00054795,120]
[321457141,1712200284080,-500.0,0.00054795,120]
[321457142,1712200284090,-500.0,0.00054795,120]
[321457143,1712200284101,-500.0,0.00054795,120]
[321457144,1712200284111,-500.0,0.00054795,120]
[321457145,1712200284121,-500.0,0.00054795,120]
[321457146,1712200284131,-500.0,0.00054795,120]
[321457147,1712200284141,-791.0,0.00054795,120]
[321457148,1712200284151,-500.0,0.00054795,120]
[321457149,1712200284161,-500.0,0.00054795,120]
[321457150,1712200284171,-500.0,0.00054795,120]
[321457151,1712200284180,-500.0,0.00054795,120]
[321457152,1712200284191,-500.0,0.00054795,120]
[321457153,1712200284201,-500.0,0.00054795,120]
[321457154,1712200284211,-500.0,0.00054795,120]
[321457155,1712200284221,-500.0,0.00054795,120]
[321457156,1712200284230,-500.0,0.00054795,120]
[321457157,1712200284241,-500.0,0.00054795,120]
[321457158,1712200284250,-500.0,0.00054795,120]
[321457159,1712200284259,-500.0,0.00054795,120]
[321457160,1712200284270,-500.0,0.00054795,120]
[321457161,1712200284281,-500.0,0.00054795,120]
[321457162,1712200284292,-500.0,0.00054795,120]
[321457163,1712200284302,-500.0,0.00054795,120]
[321457164,1712200284312,-500.0,0.00054795,120]
[321457165,1712200284324,-500.0,0.00054795,120]
[321457166,1712200284335,-500.0,0.00054795,120]
[321457167,1712200284345,-500.0,0.00054795,120]
[321457168,1712200284356,-500.0,0.00054795,120]
[321457169,1712200284367,-500.0,0.00054795,120]
[321457170,1712200284377,-500.0,0.00054795,120]
[321457171,1712200284387,-500.0,0.00054795,120]
[321457172,1712200284399,-500.0,0.00054795,120]
[321457173,1712200284409,-552.0,0.00054795,120]
[321457174,1712200284419,-500.0,0.00054795,120]
[321457175,1712200284429,-500.0,0.00054795,120]
[321457176,1712200284439,-500.0,0.00054795,120]
[321457177,1712200284450,-500.0,0.00054795,120]
[321457178,1712200284459,-500.0,0.00054795,120]
[321457179,1712200284469,-500.0,0.00054795,120]
[321457180,1712200284479,-500.0,0.00054795,120]
[321457181,1712200284489,-500.0,0.00054795,120]
[321457182,1712200284499,-504.0,0.00054795,120]
[321457183,1712200284509,-151.0,0.00054795,120]
[321457184,1712200284519,-151.0,0.00054795,120]
[321457185,1712200284530,-151.0,0.00054795,120]
[321457186,1712200284540,-328.01123821,0.00054795,90]
[321457187,1712200284551,-388.42808272,0.00054798,60]
[321457188,1712200284561,-155.52082685,0.000548,120]
[321457189,1712200284573,-520.09,0.000548,120]
[321457190,1712200284583,-13633.5393834,0.000548,60]
[321457191,1712200284593,-343.0,0.000548,31]
[321457192,1712200284603,-2624.4915311,0.000548,120]
[321457193,1712200284613,-1016.62,0.000548,120]
[321457194,1712200284623,-2518.62043922,0.000548,30]
[321457195,1712200284633,-1185.31517609,0.000548,30]
[321457196,1712200284643,-525.62911116,0.000548,30]
[321457197,1712200284654,-1634.06829562,0.000548,30]
[321457198,1712200284665,-1000.0,0.000548,30]
[321457199,1712200284675,-495.6081757,0.000548,30]
[321457200,1712200284686,-180.93173651,0.000548,30]
[321457201,1712200284695,-2929.0,0.000548,120]
[321457202,1712200284705,-421.34817259,0.00054805,120]
[321457203,1712200284715,-191.58923616,0.00054805,120]
[321457204,1712200284725,-150.0,0.00054806,120]
[321457205,1712200284735,-421.34817259,0.00054816,120]
[321457206,1712200284745,-191.58923616,0.00054816,120]
[321457207,1712200284756,-150.0,0.00054818,120]
[321457208,1712200284765,-197.97595336,0.00054818,60]
[321457209,1712200284775,-292.23916669,0.0005482,60]
[321457210,1712200284785,-421.34817259,0.00054827,120]
[321457211,1712200284794,-191.58923616,0.00054827,120]
[321457212,1712200284803,-150.0,0.00054829,120]
[321457213,1712200284813,-150.0,0.0005483,120]
[321457214,1712200284825,-500.0,0.00054832,30]
[321457215,1712200284834,-732.0,0.00054832,30]
[321457216,1712200284843,-791.0,0.00054832,30]
[321457217,1712200284854,-400.70968906,0.00054835,120]
[321457218,1712200284865,-508.5998955,0.00054835,120]
[321457219,1712200284874,-421.34817259,0.00054837,120]
[321457220,1712200284884,-191.58923616,0.00054837,120]
[321457221,1712200284893,-150.0,0.0005484,120]
[321457222,1712200284902,-421.34817259,0.00054848,120]
[321457223,1712200284912,-191.58923616,0.00054848,120]
[321457224,1712200284921,-151.0,0.00054849,120]
[321457225,1712200284931,-150.0,0.00054852,120]
[321457226,1712200284942,-2110.0,0.00054852,15]
[321457227,1712200284952,-500.0,0.00054852,7]
[321457228,1712200284962,-500.0,0.00054852,7]
[321457229,1712200284972,-500.0,0.00054852,7]
[321457230,1712200284982,-500.0,0.00054852,7]
[321457231,1712200284992,-500.0,0.00054852,7]
[321457232,1712200285002,-500.0,0.00054852,7]
[321457233,1712200285012,-500.0,0.00054852,7]
[321457234,1712200285023,-500.0,0.00054852,7]
[321457235,1712200285033,-500.0,0.00054852,7]
[321457236,1712200285042,-500.0,0.00054852,7]
[321457237,1712200285053,-500.0,0.00054852,7]
[321457238,1712200285064,-500.0,0.00054852,7]
[321457239,1712200285074,-500.0,0.00054852,7]
[321457240,1712200285083,-500.0,0.00054852,7]
[321457241,1712200285093,-500.0,0.00054852,7]
[321457242,1712200285102,-500.0,0.00054852,7]
[321457243,1712200285111,-500.0,0.00054852,7]
[321457244,1712200285121,-500.0,0.00054852,7]
[321457245,1712200285132,-500.0,0.00054852,7]
[321457246,1712200285143,-500.0,0.00054852,7]
[321457247,1712200285153,-500.0,0.00054852,7]
[321457248,1712200285163,-500.0,0.00054852,7]
[321457249,1712200285172,-500.0,0.00054852,7]
[321457250,1712200285182,-500.0,0.00054852,7]
[321457251,1712200285271,-500.0,0.00054852,7]
[321457252,1712200285280,-500.0,0.00054852,7]
[321457253,1712200285291,-500.0,0.00054852,7]
[321457254,1712200285301,-500.0,0.00054852,7]
[321457255,1712200285310,-500.0,0.00054852,7]
[321457256,1712200285321,-500.0,0.00054852,7]
[321457257,1712200285330,-500.0,0.00054852,7]
[321457258,1712200285340,-500.0,0.00054852,7]
[321457259,1712200285350,-500.0,0.00054852,7]
[321457260,1712200285360,-500.0,0.00054852,7]
[321457261,1712200285370,-500.0,0.00054852,7]
[321457262,1712200285380,-500.0,0.00054852,7]
[321457263,1712200285390,-500.0,0.00054852,7]
[321457264,1712200285399,-500.0,0.00054852,7]
[321457265,1712200285410,-500.0,0.00054852,7]
[321457266,1712200285420,-500.0,0.00054852,7]
[321457267,1712200285429,-500.0,0.00054852,7]
[321457268,1712200285439,-500.0,0.00054852,7]
[321457269,1712200285450,-500.0,0.00054852,7]
[321457270,1712200285460,-500.0,0.00054852,7]
[321457271,1712200285469,-500.0,0.00054852,7]
[321457272,1712200285479,-500.0,0.00054852,7]
[321457273,1712200285489,-500.0,0.00054852,7]
[321457274,1712200285499,-500.0,0.00054852,7]
[321457275,1712200285508,-500.0,0.00054852,7]
[321457276,1712200285518,-500.0,0.00054852,7]
[321457277,1712200285528,-500.0,0.00054852,7]
[321457278,1712200285538,-500.0,0.00054852,7]
[321457279,1712200285548,-500.0,0.00054852,7]
[321457280,1712200285558,-500.0,0.00054852,7]
[321457281,1712200285568,-500.0,0.00054852,7]
[321457282,1712200285578,-500.0,0.00054852,7]
[321457283,1712200285589,-500.0,0.00054852,7]
[321457284,1712200285599,-500.0,0.00054852,7]
[321457285,1712200285609,-500.0,0.00054852,7]
[321457286,1712200285619,-500.0,0.00054852,7]
[321457287,1712200285630,-469.49,0.00054852,7]
[321457288,1712200285641,-500.0,0.00054852,7]
[321457289,1712200285651,-500.0,0.00054852,7]
[321457290,1712200285660,-500.0,0.00054852,7]
[321457291,1712200285670,-307.96,0.00054852,7]
[321457292,1712200285680,-421.34817259,0.00054859,120]
[321457293,1712200285691,-191.58923616,0.00054859,120]
[321457294,1712200285700,-1893.58,0.00054863,120]
[321457295,1712200285709,-1893.58,0.00054863,120]
[321457296,1712200285719,-150.0,0.00054863,120]
[321457297,1712200285729,-150.0,0.00054865,120]
[321457298,1712200285739,-421.34817259,0.00054869,120]
[321457299,1712200285749,-191.58923616,0.00054869,120]
[321457300,1712200285759,-388.42808272,0.0005487,60]
[321457301,1712200285768,-150.0,0.00054875,120]
[321457302,1712200285778,-500.0,0.00054876,120]
[321457303,1712200285788,-421.34817259,0.0005488,120]
[321457304,1712200285797,-191.58923616,0.0005488,120]
[321457305,1712200285807,-899999.9,0.0005488,30]
[321457306,1712200285816,-150.0,0.00054886,120]
[321457307,1712200285827,-156.17754041,0.00054889,60]
[321457308,1712200285837,-421.34817259,0.00054891,120]
[321457309,1712200285846,-191.58923616,0.00054891,120]
[321457310,1712200285856,-150.0,0.00054898,120]
[321457311,1712200285869,-1876.61601221,0.000549,120]
[321457312,1712200285879,-150.0,0.000549,120]
[321457313,1712200285888,-421.34817259,0.00054901,120]
[321457314,1712200285897,-191.58923616,0.00054901,120]
[321457315,1712200285908,-211.99904312,0.00054909,60]
[321457316,1712200285917,-150.0,0.00054909,120]
[321457317,1712200285926,-421.34817259,0.00054912,120]
[321457318,1712200285936,-191.58923616,0.00054912,120]
[321457319,1712200285947,-150.0,0.00054921,120]
[321457320,1712200285958,-421.34817259,0.00054923,120]
[321457321,1712200285968,-191.58923616,0.00054923,120]
[321457322,1712200285978,-961.27,0.00054931,120]
[321457323,1712200285987,-150.0,0.00054932,120]
[321457324,1712200285997,-421.34817259,0.00054933,120]
[321457325,1712200286007,-191.58923616,0.00054933,120]
[321457326,1712200286017,-200.0,0.00054934,120]
[321457327,1712200286027,-800.0,0.00054934,120]
[321457328,1712200286036,-500.0,0.00054934,120]
[321457329,1712200286046,-200.0,0.00054934,120]
[321457330,1712200286056,-150.0,0.00054936,120]
[321457331,1712200286065,-150.0,0.00054944,120]
[321457332,1712200286075,-421.34817259,0.00054944,120]
[321457333,1712200286084,-191.58923616,0.00054944,120]
[321457334,1712200286093,-2923.05947,0.00054952,30]
[321457335,1712200286104,-421.34817259,0.00054955,120]
[321457336,1712200286114,-191.58923616,0.00054955,120]
[321457337,1712200286123,-150.0,0.00054955,120]
[321457338,1712200286132,-500.0,0.00054958,120]
[321457339,1712200286142,-12182.6126439,0.00054962,2]
[321457340,1712200286152,-22932.7055313,0.00054962,2]
[321457341,1712200286162,-34758.8317501,0.00054962,2]
[321457342,1712200286171,-5109.9527375,0.00054962,2]
[321457343,1712200286182,-421.34817259,0.00054965,120]
[321457344,1712200286191,-191.58923616,0.00054965,120]
[321457345,1712200286200,-150.0,0.00054967,120]
[321457346,1712200286209,-604.22994504,0.0005497,60]
[321457347,1712200286218,-150.0,0.00054971,120]
[321457348,1712200286227,-292.23916669,0.00054974,60]
[321457349,1712200286236,-421.34817259,0.00054976,120]
[321457350,1712200286245,-191.58923616,0.00054976,120]
[321457351,1712200286254,-150.0,0.00054978,120]
[321457352,1712200286263,-421.34817259,0.00054987,120]
[321457353,1712200286273,-191.58923616,0.00054987,120]
[321457354,1712200286282,-150.0,0.0005499,120]
[321457355,1712200286292,-421.34817259,0.00054997,120]
[321457356,1712200286301,-191.58923616,0.00054997,120]
[321457357,1712200286311,-12236.23424332,0.00055,120]
[321457358,1712200286321,-1470.00237881,0.00055,120]
[321457359,1712200286332,-650.0,0.00055,120]
[321457360,1712200286341,-2106.0,0.00055,10]
[321457361,1712200286350,-10000.0,0.00055,12]
[321457362,1712200286360,-121049.70850866,0.00055,120]
[321457363,1712200286370,-10000.0,0.00055,120]
[321457364,1712200286381,-10000.0,0.00055,120]
[321457365,1712200286392,-10000.0,0.00055,120]
[321457366,1712200286401,-10000.0,0.00055,120]
[321457367,1712200286410,-10000.0,0.00055,120]
[321457368,1712200286420,-10000.0,0.00055,120]
[321457369,1712200286430,-10000.0,0.00055,120]
[321457370,1712200286439,-10000.0,0.00055,120]
[321457371,1712200286449,-10000.0,0.00055,120]
[321457372,1712200286459,-10000.0,0.00055,120]
[321457373,1712200286468,-10000.0,0.00055,120]
[321457374,1712200286478,-10000.0,0.00055,120]
[321457375,1712200286487,-10000.0,0.00055,120]
[321457376,1712200286497,-10000.0,0.00055,120]
[321457377,1712200286508,-10000.0,0.00055,120]
[321457378,1712200286518,-10000.0,0.00055,120]
[321457379,1712200286528,-10000.0,0.00055,120]
[321457380,1712200286539,-10000.0,0.00055,120]
[321457381,1712200286550,-42000.0,0.00055,2]
[321457382,1712200286561,-25000.0,0.00055,5]
[321457383,1712200286571,-30397.6341061,0.00055,10]
[321457384,1712200286581,-10000.0,0.00055,120]
[321457385,1712200286591,-10000.0,0.00055,120]
[321457386,1712200286602,-10000.0,0.00055,120]
[321457387,1712200286611,-10000.0,0.00055,120]
[321457388,1712200286622,-6422.0,0.00055,120]
[321457389,1712200286632,-1000.0,0.00055,120]
[321457390,1712200286643,-641.0,0.00055,120]
[321457391,1712200286653,-2100.0,0.00055,30]
[321457392,1712200286662,-300.0,0.00055,60]
[321457393,1712200286672,-6755.02170728,0.00055,60]
[321457394,1712200286682,-190.77682627,0.00055,120]
[321457395,1712200286692,-62474.42524514,0.00055,120]
[321457396,1712200286701,-161.54266328,0.00055,30]
[321457397,1712200286711,-339.48124843,0.00055,30]
[321457398,1712200286721,-1547.99185298,0.00055,120]
[321457399,1712200286730,-4830.65125411,0.00055,120]
[321457400,1712200286740,-438.75866903,0.00055,30]
[321457401,1712200286750,-226.37101517,0.00055,30]
[321457402,1712200286760,-600.0,0.00055,56]
[321457403,1712200286770,-41550.63507945,0.00055,40]
[321457404,1712200286780,-54225.0,0.00055,30]
[321457405,1712200286789,-151.3,0.00055,120]
[321457406,1712200286799,-193368.52922749,0.00055,120]
[321457407,1712200286809,-10489.0,0.00055,120]
[321457408,1712200286820,-1001.3741793,0.00055,10]
[321457409,1712200286830,-30000.0,0.00055,30]
[321457410,1712200286839,-4135.39383098,0.00055,5]
[321457411,1712200286848,-2500.0,0.00055,120]
[321457412,1712200286857,-151.0,0.00055,120]
[321457413,1712200286869,-195.124799,0.00055,120]
[321457414,1712200286878,-151.0,0.00055,120]
[321457415,1712200286888,-151.0,0.00055,120]
[321457416,1712200286897,-151.0,0.00055,120]
[321457417,1712200286907,-151.0,0.00055,120]
[321457418,1712200286917,-151.0,0.00055,120]
[321457419,1712200286927,-151.0,0.00055,120]
[321457420,1712200286937,-151.0,0.00055,120]
[321457421,1712200286947,-151.0,0.00055,120]
[321457422,1712200286956,-151.0,0.00055,120]
[321457423,1712200286967,-259.233093,0.00055,7]
[321457424,1712200286977,-259.233093,0.00055,7]
[321457425,1712200286986,-151.0,0.00055,120]
[321457426,1712200286996,-151.0,0.00055,120]
[321457427,1712200287006,-151.0,0.00055,120]
[321457428,1712200287017,-938.115971,0.00055,120]
[321457429,1712200287026,-151.0,0.00055,7]
[321457430,1712200287036,-151.0,0.00055,120]
[321457431,1712200287046,-151.0,0.00055,120]
[321457432,1712200287056,-151.0,0.00055,120]
[321457433,1712200287064,-279.871932,0.00055,14]
[321457434,1712200287076,-151.0,0.00055,120]
[321457435,1712200287085,-279.871932,0.00055,14]
[321457436,1712200287094,-340.729012,0.00055,120]
[321457437,1712200287104,-340.729012,0.00055,120]
[321457438,1712200287113,-323.357105,0.00055,120]
[321457439,1712200287123,-151.0,0.00055,120]
[321457440,1712200287132,-323.357105,0.00055,120]
[321457441,1712200287142,-151.0,0.00055,120]
[321457442,1712200287153,-151.0,0.00055,120]
[321457443,1712200287162,-151.0,0.00055,120]
[321457444,1712200287173,-205.856093,0.00055,120]
[321457445,1712200287183,-354.097611,0.00055,120]
[321457446,1712200287194,-354.097611,0.00055,120]
[321457447,1712200287205,-151.0,0.00055,60]
[321457448,1712200287215,-151.0,0.00055,120]
[321457449,1712200287227,-198.86149,0.00055,120]
[321457450,1712200287237,-198.86149,0.00055,120]
[321457451,1712200287247,-151.0,0.00055,120]
[321457452,1712200287256,-999.0,0.00055,104]
[321457453,1712200287265,-185.406329,0.00055,120]
[321457454,1712200287275,-185.406329,0.00055,120]
[321457455,1712200287285,-273.734388,0.00055,120]
[321457456,1712200287295,-193.775026,0.00055,120]
[321457457,1712200287306,-193.775026,0.00055,120]
[321457458,1712200287316,-338.216261,0.00055,120]
[321457459,1712200287330,-338.216261,0.00055,120]
[321457460,1712200287342,-750.539528,0.00055,30]
[321457461,1712200287354,-750.539528,0.00055,30]
[321457462,1712200287363,-223.76888,0.00055,120]
[321457463,1712200287374,-223.76888,0.00055,120]
[321457464,1712200287384,-151.0,0.00055,120]
[321457465,1712200287394,-299.749919,0.00055,120]
[321457466,1712200287404,-151.0,0.00055,120]
[321457467,1712200287414,-361.491422,0.00055,120]
[321457468,1712200287424,-361.491422,0.00055,120]
[321457469,1712200287433,-151.0,0.00055,120]
[321457470,1712200287443,-151.0,0.00055,120]
[321457471,1712200287452,-288.633246,0.00055,120]
[321457472,1712200287461,-288.633246,0.00055,120]
[321457473,1712200287471,-151.0,0.00055,120]
[321457474,1712200287481,-151.0,0.00055,120]
[321457475,1712200287491,-579.431877,0.00055,120]
[321457476,1712200287501,-579.431877,0.00055,120]
[321457477,1712200287512,-230.324354,0.00055,120]
[321457478,1712200287522,-230.324354,0.00055,120]
[321457479,1712200287532,-151.0,0.00055,120]
[321457480,1712200287542,-858.40166,0.00055,30]
[321457481,1712200287551,-858.40166,0.00055,30]
[321457482,1712200287561,-151.0,0.00055,120]
[321457483,1712200287571,-151.0,0.00055,120]
[321457484,1712200287581,-151.0,0.00055,120]
[321457485,1712200287591,-151.0,0.00055,120]
[321457486,1712200287602,-151.0,0.00055,120]
[321457487,1712200287612,-151.0,0.00055,7]
[321457488,1712200287622,-151.0,0.00055,120]
[321457489,1712200287633,-200.701774,0.00055,120]
[321457490,1712200287643,-200.701774,0.00055,120]
[321457491,1712200287654,-151.0,0.00055,120]
[321457492,1712200287664,-217.97847,0.00055,30]
[321457493,1712200287673,-217.97847,0.00055,30]
[321457494,1712200287682,-151.0,0.00055,120]
[321457495,1712200287691,-151.0,0.00055,120]
[321457496,1712200287700,-151.0,0.00055,120]
[321457497,1712200287709,-292.667321,0.00055,120]
[321457498,1712200287718,-292.667321,0.00055,120]
[321457499,1712200287727,-151.0,0.00055,120]
[321457500,1712200287737,-259.428547,0.00055,120]
[321457501,1712200287746,-259.428547,0.00055,120]
[321457502,1712200287756,-162.974525,0.00055,120]
[321457503,1712200287766,-162.974525,0.00055,120]
[321457504,1712200287776,-151.0,0.00055,120]
[321457505,1712200287784,-151.0,0.00055,120]
[321457506,1712200287793,-461.879019,0.00055,120]
[321457507,1712200287804,-461.879019,0.00055,120]
[321457508,1712200287813,-151.0,0.00055,120]
[321457509,1712200287824,-151.0,0.00055,120]
[321457510,1712200287833,-232.644489,0.00055,120]
[321457511,1712200287843,-156.56127,0.00055,120]
[321457512,1712200287854,-151.0,0.00055,120]
[321457513,1712200287866,-150.0,0.00055001,120]
[321457514,1712200287876,-2366.51793448,0.00055002,7]
[321457515,1712200287886,-150.0,0.00055006,120]
[321457516,1712200287895,-150.0,0.00055006,120]
[321457517,1712200287906,-421.34817259,0.00055008,120]
[321457518,1712200287915,-191.58923616,0.00055008,120]
[321457519,1712200287925,-150.0,0.00055013,120]
[321457520,1712200287935,-421.34817259,0.00055019,120]
[321457521,1712200287947,-191.58923616,0.00055019,120]
[321457522,1712200287957,-150.0,0.00055024,120]
[321457523,1712200287967,-153.89032083,0.00055026,120]
[321457524,1712200287976,-421.34817259,0.0005503,120]
[321457525,1712200287986,-191.58923616,0.0005503,120]
[321457526,1712200287995,-18894.6916824,0.0005503,2]
[321457527,1712200288004,-28638.4617054,0.0005503,2]
[321457528,1712200288014,-4218.1818626,0.0005503,2]
[321457529,1712200288023,-10037.4859599,0.00055032,2]
[321457530,1712200288034,-150.0,0.00055036,120]
[321457531,1712200288043,-421.34817259,0.0005504,120]
[321457532,1712200288054,-191.58923616,0.0005504,120]
[321457533,1712200288064,-500.0,0.00055041,120]